bitfinex/quotes_ETHUSD_20220103
["timestamp","ask_amount","ask_price","bid_price","bid_amount"]
[1641211648939,2.59571601,3829.9,3829.6,8.4]
[1641211649135,2.59571601,3829.9,3829.7,2.6863952]
[1641211649336,2.59571601,3829.9,3829.7,4.52724111]
[1641211649548,2.0986616,3830.4,3830.0,0.65271]
[1641211649737,2.0986616,3830.4,3830.0,1.03371]
[1641211649940,0.00397896,3830.1,3830.0,0.381]
[1641211650139,0.00397896,3830.1,3829.3,1.77060966]
[1641211650569,0.00341054,3830.0,3829.3,1.77060966]
[1641211650768,0.00341054,3830.0,3829.8,2.31016633]
[1641211650970,0.00284212,3829.9,3829.8,2.13191264]
[1641211651372,0.00284212,3829.9,3829.4,1.06866329]
[1641211651772,0.00227369,3829.8,3829.4,1.06866329]
[1641211651974,0.00227369,3829.8,3829.5,2.6]
[1641211652180,2.41589309,3830.7,3829.5,2.6]
[1641211652181,0.00170527,3829.7,3829.5,2.6]
[1641211652578,0.00113685,3829.6,3829.5,2.6]
[1641211652776,0.00113685,3829.6,3829.5,3.90575]
[1641211653578,0.00113685,3829.6,3829.5,6.47635955]
[1641211653776,0.00113685,3829.6,3829.5,4.50575]
[1641211654830,0.00113685,3829.6,3829.5,4.20575]
[1641211656832,0.00113685,3829.6,3829.5,4.50575]
[1641211657633,0.00113685,3829.6,3829.5,6.77759689]
[1641211659565,0.00113685,3829.6,3829.5,7.15859689]
[1641211659969,0.05534315,3830.3,3829.5,7.15859689]
[1641211660166,0.05534315,3830.3,3829.9,0.65279]
[1641211660366,0.00341054,3830.2,3829.9,0.65279]
[1641211660767,0.00284211,3830.1,3829.9,0.65279]
[1641211661167,0.00227369,3830.0,3829.9,0.65279]
[1641211674284,0.00227369,3830.0,3829.9,2.36936438]
[1641211680886,1.24046343,3830.0,3829.9,2.36936438]
[1641211686918,2.02446343,3830.0,3829.9,2.36936438]
[1641211690872,2.02446343,3830.0,3829.9,2.38006438]
[1641211691618,2.02218974,3830.0,3829.9,2.38006438]
[1641211694826,3.23018755,3830.0,3829.9,2.38006438]
[1641211696478,3.24044756,3830.0,3829.9,2.38006438]
[1641211698584,2.03244975,3830.0,3829.9,2.38006438]
[1641211706370,4.50820188,3830.0,3829.9,2.38006438]
[1641211706819,4.50820188,3830.0,3829.9,1.72727438]
[1641211707214,5.18998119,3830.0,3829.9,1.72727438]
[1641211707415,5.18998119,3830.0,3829.9,0.0107]
[1641211708619,2.71422906,3830.0,3829.9,0.0107]
[1641211708825,2.03244975,3830.0,3829.9,0.0107]
[1641211709019,2.03244975,3830.0,3829.9,2.60991658]
[1641211709219,2.03244975,3830.0,3829.9,0.0107]
[1641211709626,2.03244975,3830.0,3829.9,1.01335093]
[1641211710566,1.98244975,3830.0,3829.9,2.82883742]
[1641211710974,1.98244975,3830.0,3829.9,1.82618649]
[1641211711167,1.98244975,3830.0,3829.9,2.42618649]
[1641211711366,1.98244975,3830.0,3829.9,2.12618649]
[1641211711772,1.98244975,3830.0,3829.9,2.42618649]
[1641211713374,1.98244975,3830.0,3829.9,4.6545076]
[1641211713573,1.98244975,3830.0,3829.9,2.42618649]
[1641211714122,1.98715659,3830.0,3829.9,2.42618649]
[1641211716224,1.98715659,3830.0,3829.9,2.12618649]
[1641211716426,1.98715659,3830.0,3829.9,1.82618649]
[1641211719579,4.02113659,3830.0,3829.9,0.15948649]
[1641211719764,3.03346904,3830.0,3829.9,0.15948649]
[1641211719967,4.03346904,3830.0,3829.9,0.15948649]
[1641211720368,4.03346904,3830.0,3829.5,2.6]
[1641211720369,1.93203536,3829.8,3829.5,2.6]
[1641211720569,2.31303536,3829.8,3829.5,2.6]
[1641211721266,2.28339598,3829.8,3829.5,2.6]
[1641211721467,0.75436062,3829.6,3829.5,2.6]
[1641211722328,0.76462169,3829.6,3829.5,2.6]
[1641211722928,0.58553247,3829.6,3829.5,2.6]
[1641211724131,0.59020476,3829.6,3829.5,2.6]
[1641211726374,2.27526116,3830.1,3829.9,8.47044504]
[1641211726576,2.26660766,3830.6,3830.2,8.4]
[1641211726776,1.27216357,3830.9,3830.6,0.14422403]
[1641211726973,3.79624732,3831.3,3830.8,8.41264801]
[1641211727172,3.79624732,3831.3,3830.9,8.4]
[1641211727173,0.95224732,3831.3,3830.9,8.4]
[1641211727374,5.82704901,3831.5,3831.3,8.4]
[1641211727573,4.39297372,3831.6,3831.5,15.23]
[1641211727772,4.39297372,3831.6,3831.5,20.369]
[1641211727973,1.40767247,3832.2,3831.6,8.7]
[1641211728174,1.40767247,3832.2,3832.1,4.758]
[1641211728373,7.28381126,3832.8,3832.2,8.4]
[1641211728581,7.28381126,3832.8,3832.7,4.758]
[1641211728772,7.28381126,3832.8,3832.7,6.365]
[1641211728972,2.06560126,3832.8,3832.7,6.365]
[1641211729235,1.54035313,3833.9,3832.7,6.665]
[1641211729432,1.54035313,3833.9,3833.7,4.758]
[1641211729733,1.54035313,3833.9,3833.8,1.52058933]
[1641211729935,6.21,3834.5,3833.8,1.52058933]
[1641211730132,0.02273693,3833.9,3833.8,1.52058933]
[1641211730534,0.02842117,3834.9,3833.8,1.52058933]
[1641211730734,0.02842117,3834.9,3834.2,0.6522]
[1641211730933,0.66436897,3835.3,3834.3,0.381]
[1641211730934,0.02785275,3834.8,3834.3,0.381]
[1641211731338,3.7108,3836.2,3834.3,3.13451724]
[1641211731339,0.02728432,3834.7,3834.3,3.13451724]
[1641211731536,0.02728432,3834.7,3834.3,0.681]
[1641211731734,0.0267159,3834.6,3834.5,1.21063557]
[1641211731936,0.0267159,3834.6,3834.5,3.94163557]
[1641211732332,0.0267159,3834.6,3834.5,1.59163557]
[1641211733172,0.0267159,3834.6,3834.5,2.24380557]
[1641211733778,0.0267159,3834.6,3834.5,0.381]
[1641211733975,0.0267159,3834.6,3834.1,0.381]
[1641211734172,0.0267159,3834.6,3833.8,1.32938342]
[1641211734473,0.02614748,3834.5,3833.8,1.32938342]
[1641211734672,0.02614748,3834.5,3833.5,1.32938342]
[1641211734873,0.02557905,3834.4,3833.5,1.32938342]
[1641211735179,0.02501063,3834.3,3833.5,1.32938342]
[1641211735675,0.02444221,3834.2,3833.3,3.8074346]
[1641211735875,0.02444221,3834.2,3833.3,4.1074346]
[1641211736073,0.381,3834.9,3833.3,4.1074346]
[1641211736074,0.02387378,3834.1,3833.3,4.1074346]
[1641211736273,0.02387378,3834.1,3833.5,0.65229]
[1641211736475,0.02330536,3834.0,3833.5,0.65229]
[1641211737021,2.20865632,3834.9,3833.5,0.65229]
[1641211737422,2.44660923,3834.8,3833.5,0.65229]
[1641211737620,3.44660923,3834.8,3833.5,0.65229]
[1641211737825,0.02728432,3834.7,3833.5,0.65229]
[1641211738224,0.0267159,3834.6,3833.5,0.65229]
[1641211738619,0.02614748,3834.5,3833.5,0.65229]
[1641211739120,0.02557905,3834.4,3833.5,0.65229]
[1641211739521,0.02501063,3834.3,3833.3,2.6]
[1641211739819,0.02444221,3834.2,3833.3,2.6]
[1641211740221,0.02387378,3834.1,3833.3,2.6]
[1641211740489,3.09945564,3834.1,3833.3,2.6]
[1641211740685,0.65249,3833.7,3833.3,2.6]
[1641211740878,0.381,3833.6,3833.3,2.6]
[1641211741078,0.40203166,3833.6,3833.3,2.6]
[1641211741380,0.02046324,3833.5,3833.3,2.6]
[1641211741580,7.86422475,3833.4,3833.3,2.6]
[1641211741782,2.18668957,3833.4,3833.3,2.6]
[1641211742080,3.18668957,3833.4,3833.3,2.6]
[1641211742281,2.18668957,3833.4,3833.3,2.6]
[1641211742579,3.18668957,3833.4,3833.3,2.6]
[1641211742783,2.18668957,3833.4,3833.3,2.6]
[1641211742987,1.53411957,3833.4,3833.3,2.6]
[1641211743385,0.40089482,3833.4,3833.3,2.6]
[1641211743585,0.01989482,3833.4,3833.3,2.6]
[1641211743783,6.72797033,3834.9,3833.3,2.6]
[1641211743984,0.381,3834.8,3833.3,2.6]
[1641211744226,0.00227369,3833.8,3833.3,2.6]
[1641211744623,0.00170527,3833.7,3833.3,2.6]
[1641211745127,0.00113684,3833.6,3833.3,2.6]
[1641211745424,1.41573434,3833.8,3833.3,2.6]
[1641211745425,0.00170527,3833.7,3833.3,2.6]
[1641211745824,0.00113684,3833.6,3833.3,2.6]
[1641211746224,0.00170527,3833.7,3833.3,2.6]
[1641211746624,0.00113684,3833.6,3833.3,2.6]
[1641211747029,0.00170527,3833.7,3833.3,2.6]
[1641211747430,0.00113684,3833.6,3833.3,2.6]
[1641211747861,0.00170527,3833.7,3833.3,2.6]
[1641211748265,0.00113684,3833.6,3833.3,2.6]
[1641211748662,0.00170527,3833.7,3833.3,2.6]
[1641211749063,0.00113684,3833.6,3833.3,2.6]
[1641211749464,0.00170527,3833.7,3833.3,2.6]
[1641211749864,1.41573434,3833.8,3833.3,2.6]
[1641211749865,0.00113684,3833.6,3833.3,2.6]
[1641211750367,0.00170527,3833.7,3833.3,2.6]
[1641211750770,0.00113684,3833.6,3833.3,2.6]
[1641211751168,1.27161507,3833.9,3833.3,2.6]
[1641211752419,0.00341054,3834.0,3833.3,2.6]
[1641211752822,0.381,3834.1,3833.3,2.6]
[1641211752823,0.00284211,3833.9,3833.3,2.6]
[1641211753222,0.00341054,3834.0,3833.3,2.6]
[1641211753424,0.00341054,3834.0,3833.5,3.55002647]
[1641211753621,0.00284211,3833.9,3833.5,3.55002647]
[1641211754022,0.00341054,3834.0,3833.5,4.20232647]
[1641211754223,0.00341054,3834.0,3833.7,3.55002647]
[1641211754523,0.00284211,3833.9,3833.7,3.55002647]
[1641211754923,0.65692739,3834.2,3833.7,3.55002647]
[1641211755380,0.00397896,3834.1,3833.6,6.41132926]
[1641211755800,0.00341054,3834.0,3833.6,2.96130279]
[1641211756099,0.00284211,3833.9,3833.4,2.96130279]
[1641211756491,0.00454739,3834.2,3833.4,2.96130279]
[1641211756891,0.00397896,3834.1,3833.4,2.96130279]
[1641211757291,0.00397896,3834.1,3833.3,2.6]
[1641211757292,0.00341054,3834.0,3833.7,2.96130279]
[1641211757692,0.00284211,3833.9,3833.7,2.96130279]
[1641211757896,0.00284211,3833.9,3833.4,2.96130279]
[1641211758092,0.00454739,3834.2,3833.4,2.96130279]
[1641211758393,0.00397896,3834.1,3833.4,2.96130279]
[1641211758792,0.00341054,3834.0,3833.5,2.44508076]
[1641211758998,0.00341054,3834.0,3833.5,2.74508076]
[1641211759223,0.00284211,3833.9,3833.5,0.95226]
[1641211759431,0.00284211,3833.9,3833.5,0.65226]
[1641211759627,0.00568423,3834.4,3833.5,0.65226]
[1641211759828,0.00568423,3834.4,3833.6,2.96130279]
[1641211760033,0.00511581,3834.3,3833.7,2.44508076]
[1641211760229,0.00511581,3834.3,3834.1,1.30423]
[1641211760530,0.00454739,3834.2,3834.1,1.60423]
[1641211760728,0.00454739,3834.2,3834.1,1.30423]
[1641211760928,0.00454739,3834.2,3834.1,1.60423]
[1641211761327,0.00454739,3834.2,3834.1,2.2563309]
[1641211761528,6.21,3834.5,3834.1,2.2563309]
[1641211761927,0.00113684,3834.4,3834.1,1.9563309]
[1641211762227,0.00113684,3834.4,3834.1,2.2563309]
[1641211762428,0.00113684,3834.4,3834.1,1.9563309]
[1641211762627,0.00113684,3834.4,3834.1,5.21763369]
[1641211762888,0.00113684,3834.4,3834.2,0.3]
[1641211763074,0.00113684,3834.4,3834.2,0.95209]
[1641211763274,0.00113684,3834.4,3834.3,6.25161511]
[1641211763474,0.00113684,3834.4,3834.3,3.85208954]
[1641211763680,0.00113684,3834.4,3834.3,3.26130279]
[1641211763878,0.00113684,3834.4,3834.3,2.96130279]
[1641211764281,0.00113684,3834.4,3834.3,5.11554969]
[1641211764480,0.00113684,3834.4,3834.3,5.09445454]
[1641211764782,0.00113684,3834.4,3834.3,2.96130279]
[1641211765385,0.00113684,3834.4,3834.3,6.47785406]
[1641211765581,0.00113684,3834.4,3834.3,4.0327733]
[1641211765985,0.00113684,3834.4,3834.3,6.6327733]
[1641211766622,0.00113684,3834.4,3834.3,9.10242047]
[1641211766828,0.00113684,3834.4,3834.3,13.53995355]
[1641211767828,0.00113684,3834.4,3834.3,9.10242047]
[1641211768833,0.00113684,3834.4,3834.3,14.31842047]
[1641211770488,0.00113684,3834.4,3834.3,18.76037465]
[1641211770690,0.00113684,3834.4,3834.3,14.31842047]
[1641211771991,0.00113684,3834.4,3834.3,11.8487733]
[1641211772194,0.00113684,3834.4,3834.3,16.29072748]
[1641211772590,0.00113684,3834.4,3834.3,11.8487733]
[1641211772991,0.00113684,3834.4,3834.3,16.29072748]
[1641211773592,0.00113684,3834.4,3834.3,10.77730279]
[1641211774843,0.00113684,3834.4,3834.3,12.0510632]
[1641211776450,0.05541126,3835.0,3834.6,0.6519809]
[1641211776648,0.05541126,3835.0,3834.7,0.652]
[1641211776853,0.00284212,3834.9,3834.7,0.652]
[1641211777250,0.0022737,3834.8,3834.7,0.652]
[1641211777451,0.0022737,3834.8,3834.7,5.2155]
[1641211780390,0.0022737,3834.8,3834.7,8.1760033]
[1641211796733,0.68086885,3835.7,3834.7,8.1760033]
[1641211796937,0.68086885,3835.7,3835.1,0.65199]
[1641211797133,0.00454738,3835.6,3835.1,0.65199]
[1641211797336,0.00454738,3835.6,3835.2,1.30398]
[1641211797534,0.00397896,3835.5,3835.2,0.65199]
[1641211797934,0.00341054,3835.4,3835.3,2.9605033]
[1641211798337,0.00341054,3835.4,3835.3,4.9164922]
[1641211799336,0.00341054,3835.4,3835.3,4.2645]
[1641211800243,0.00341054,3835.4,3835.3,3.6125233]
[1641211802083,0.00341054,3835.4,3835.3,4.2645385]
[1641211804525,0.00341054,3835.4,3835.3,3.6125233]
[1641211805625,0.00341054,3835.4,3835.3,4.2645178]
[1641211806028,0.28484899,3835.9,3835.4,5.3]
[1641211806227,0.28484899,3835.9,3835.3,3.6125233]
[1641211806428,0.00227369,3835.8,3835.3,3.6125233]
[1641211806829,0.00170527,3835.7,3835.3,3.6125233]
[1641211807029,0.00170527,3835.7,3835.4,4.2643061]
[1641211807230,0.28484899,3835.9,3835.4,4.2643061]
[1641211807231,0.00113684,3835.6,3835.4,4.9162361]
[1641211807633,0.00113684,3835.6,3835.5,2.9605033]
[1641211811091,0.00113684,3835.6,3835.5,3.9123733]
[1641211811486,0.28484899,3835.9,3835.5,3.9123733]
[1641211811737,0.28484899,3835.9,3835.7,0.65185]
[1641211811937,0.28484899,3835.9,3835.7,2.2555418]
[1641211811938,0.00113685,3835.8,3835.7,2.2555418]
[1641211812943,0.00113685,3835.8,3835.7,8.1160451]
[1641211813143,0.00113685,3835.8,3835.7,5.2160451]
[1641211813450,0.00113685,3835.8,3835.7,7.7073918]
[1641211813642,0.00113685,3835.8,3835.7,2.9073918]
[1641211814043,0.00113685,3835.8,3835.7,8.1215918]
[1641211814245,0.00113685,3835.8,3835.7,10.4302451]
[1641211815044,0.00113685,3835.8,3835.7,10.44214015]
[1641211816283,0.00113685,3835.8,3835.7,10.14214015]
[1641211816482,0.00113685,3835.8,3835.7,10.44214015]
[1641211816683,0.00113685,3835.8,3835.7,10.14214015]
[1641211817086,0.00113685,3835.8,3835.7,9.1265533]
[1641211817291,0.00113685,3835.8,3835.7,12.25263406]
[1641211817292,3.685e-05,3835.8,3835.7,12.25263406]
[1641211817487,3.685e-05,3835.8,3835.7,12.28748467]
[1641211817886,3.685e-05,3835.8,3835.7,13.59102467]
[1641211818088,3.685e-05,3835.8,3835.7,16.79701152]
[1641211818288,6.21,3836.3,3835.7,16.79701152]
[1641211818490,6.21,3836.3,3835.9,1.25165]
[1641211818693,0.00227369,3836.2,3836.0,5.5948]
[1641211818988,6.21,3836.3,3836.1,9.44900456]
[1641211819237,6.21,3836.3,3836.2,13.9945]
[1641211819432,6.21,3836.3,3836.2,14.2945]
[1641211819630,6.21,3836.3,3836.2,15.2945]
[1641211820131,0.05610266,3837.5,3836.2,15.2945]
[1641211820434,0.00909478,3837.4,3837.0,0.65164]
[1641211820632,0.00909478,3837.4,3836.9,2.3913988]
[1641211820633,0.00909478,3837.4,3837.1,5.2123]
[1641211820831,0.00852635,3837.3,3837.1,5.2123]
[1641211821236,0.00795793,3837.2,3837.1,5.2123]
[1641211824190,0.00795793,3837.2,3837.1,5.5123]
[1641211825091,0.00795793,3837.2,3837.1,8.47074534]
[1641211825296,0.00795793,3837.2,3837.1,8.17074534]
[1641211826396,0.00795793,3837.2,3837.1,5.2123]
[1641211827523,0.70140282,3837.2,3837.1,5.2123]
[1641211827724,0.02090662,3837.2,3837.1,5.2123]
[1641211827924,0.02090662,3837.2,3837.1,7.8123]
[1641211828325,0.00795793,3837.2,3837.1,7.8123]
[1641211832085,9.58582835,3837.2,3837.1,1e-08]
[1641211832486,10.58582835,3837.2,3837.1,1e-08]
[1641211832687,0.784,3836.2,3835.5,2.44508076]
[1641211832887,1.30392,3836.6,3835.4,4.43866892]
[1641211832888,0.784,3835.9,3835.4,4.43866892]
[1641211833090,0.784,3835.9,3835.6,0.00113685]
[1641211833287,0.784,3835.7,3835.6,0.00113685]
[1641211833689,0.784,3835.7,3835.6,2.96066526]
[1641211834329,1.084,3835.7,3835.6,2.96066526]
[1641211834731,1.084,3835.7,3835.6,0.00113685]
[1641211834933,0.784,3835.7,3835.6,0.00113685]
[1641211835233,0.784,3835.5,3835.3,2.48589782]
[1641211835638,0.784,3835.5,3835.4,0.00227369]
[1641211836037,0.784,3835.5,3835.3,0.00284212]
[1641211836235,0.784,3835.5,3835.2,0.00341054]
[1641211836639,0.784,3835.5,3835.3,8.17412841]
[1641211837036,0.784,3835.5,3835.4,5.20227369]
[1641211837237,0.784,3835.5,3835.4,0.00227369]
[1641211837436,0.784,3835.5,3835.4,2.9618021]
[1641211837637,0.784,3835.5,3835.4,8.1764021]
[1641211838793,0.784,3835.9,3835.4,8.1764021]
[1641211839195,0.784,3835.7,3835.5,0.00170527]
[1641211839392,0.784,3835.7,3835.6,5.2143]
[1641211840692,0.784,3835.7,3835.6,9.48941526]
[1641211842232,0.784,3835.7,3835.6,8.17382841]
[1641211847885,1.084,3835.7,3835.6,8.17382841]
[1641211850946,0.784,3835.7,3835.6,8.17382841]
[1641211851552,4.665,3835.7,3835.6,8.17382841]
[1641211851751,4.829,3835.7,3835.6,8.17382841]
[1641211851951,2.929,3835.7,3835.6,8.17382841]
[1641211852156,10.1402079,3835.7,3835.6,2.95594841]
[1641211852350,3.1902079,3835.7,3835.6,2.95594841]
[1641211852550,3.1902079,3835.7,3835.5,0.00170527]
[1641211852751,0.784,3835.5,3834.4,3.79864255]
[1641211852982,0.784,3835.0,3834.4,1.31558685]
[1641211853181,0.784,3835.0,3834.5,0.00568423]
[1641211853382,0.784,3834.9,3834.5,0.00568423]
[1641211853784,0.784,3834.6,3834.5,0.00568423]
[1641211853982,1.084,3834.6,3834.5,0.00568423]
[1641211855082,1.084,3834.6,3834.3,0.00682108]
[1641211855283,0.784,3834.4,3834.3,0.00682108]
[1641211855482,1.084,3834.4,3834.3,0.00682108]
[1641211855683,0.784,3834.4,3834.3,0.00682108]
[1641211855984,1.084,3834.4,3834.3,0.00682108]
[1641211856185,1.2874,3834.4,3834.3,0.00682108]
[1641211856631,2.2874,3834.4,3834.3,0.00682108]
[1641211857537,2.6684,3834.4,3834.3,0.00682108]
[1641211857736,0.784,3834.2,3833.8,1.31558685]
[1641211857938,0.14129,3834.1,3833.8,1.31558685]
[1641211858137,0.5453,3834.0,3833.9,0.0022737]
[1641211858535,1.71105433,3834.0,3833.9,0.0022737]
[1641211858738,2.36348433,3834.0,3833.9,0.0022737]
[1641211858937,3.36348433,3834.0,3833.9,0.0022737]
[1641211859338,3.8,3833.9,3833.7,1.31558685]
[1641211859538,1.3,3833.8,3833.7,1.31558685]
[1641211859943,1.3,3833.8,3833.7,1.31672369]
[1641211859944,0.3,3833.8,3833.7,1.31672369]
[1641211860141,1.0334402,3833.9,3833.7,1.31672369]
[1641211860388,1.0334402,3833.9,3833.7,0.00113684]
[1641211860786,1.0334402,3833.9,3833.5,0.00227369]
[1641211860987,0.65244,3833.6,3833.5,0.00227369]
[1641211861186,0.65244,3833.6,3833.5,1.31786054]
[1641211861590,0.95244,3833.6,3833.5,1.31786054]
[1641211862092,0.95244,3833.6,3833.5,0.00227369]
[1641211863491,0.65244,3833.6,3833.5,0.00227369]
[1641211864934,0.95244,3833.6,3833.5,0.00227369]
[1641211866742,0.65244,3833.6,3833.5,0.00227369]
[1641211867749,0.65244,3833.6,3833.5,2.60227369]
[1641211868200,1.33363761,3833.6,3833.5,2.60227369]
[1641211868802,1.33363761,3833.6,3833.5,0.00227369]
[1641211871939,0.68119761,3833.6,3833.5,0.00227369]
[1641211875805,0.98119761,3833.6,3833.5,0.00227369]
[1641211876907,0.68119761,3833.6,3833.5,0.00227369]
[1641211887537,0.68119761,3833.6,3833.5,2.96350272]
[1641211887935,0.68119761,3833.6,3833.5,3.26350272]
[1641211888341,0.68119761,3833.6,3833.5,5.58312851]
[1641211888940,10.0,3834.0,3833.5,5.58312851]
[1641211889339,10.0,3834.0,3833.6,0.00170527]
[1641211889941,10.0,3834.0,3833.7,1.3042486]
[1641211890144,10.0,3834.0,3833.8,2.63357394]
[1641211890394,10.0,3834.0,3833.9,2.39762048]
[1641211890598,10.0,3834.0,3833.9,5.35884951]
[1641211891000,10.0,3834.0,3833.9,10.57544951]
[1641211891901,10.0,3834.0,3833.9,11.60846951]
[1641211894646,10.0,3834.0,3833.9,8.82984903]
[1641211894852,10.0,3834.0,3833.9,8.47782903]
[1641211895653,10.0,3834.0,3833.9,10.65899364]
[1641211895852,10.0,3834.0,3833.9,10.6934168]
[1641211896055,10.0,3834.0,3833.9,12.02191696]
[1641211897452,10.0,3834.0,3833.9,8.47782903]
[1641211897654,10.0,3834.0,3833.9,10.75683609]
[1641211898107,10.0,3834.0,3833.9,14.30006972]
[1641211898507,10.0,3834.0,3833.9,12.02106266]
[1641211898708,10.0,3834.0,3833.9,11.72106266]
[1641211898915,10.0,3834.0,3833.9,8.17782903]
[1641211899109,10.0,3834.0,3833.9,10.41757426]
[1641211900110,10.0,3834.0,3833.9,10.71757426]
[1641211901751,10.0,3834.0,3833.9,8.47782903]
[1641211901949,10.0,3834.0,3833.9,10.66055747]
[1641211902350,10.0,3834.0,3833.9,8.47782903]
[1641211904154,10.0,3834.0,3833.9,9.12990903]
[1641211904352,10.0,3834.0,3833.9,11.41752796]
[1641211905798,10.0,3834.0,3833.9,10.76544796]
[1641211906395,10.0,3834.0,3833.9,8.47782903]
[1641211907200,10.0,3834.0,3833.9,11.37230526]
[1641211907400,10.0,3834.0,3833.9,10.72022526]
[1641211908398,10.0,3834.0,3833.9,11.37231526]
[1641211909151,10.0,3834.0,3833.9,10.72022526]
[1641211911455,10.0,3834.0,3833.9,8.47782903]
[1641211912060,10.0,3834.0,3833.9,10.70815472]
[1641211912916,10.0,3834.0,3833.9,8.47782903]
[1641211913119,10.0,3834.0,3833.9,8.17782903]
[1641211914319,10.0,3834.0,3833.9,8.47782903]
[1641211917273,10.0,3834.0,3833.9,10.71990753]
[1641211917467,10.0,3834.0,3833.9,8.47782903]
[1641211919170,10.0,3834.0,3833.9,10.70094381]
[1641211920070,10.0,3834.0,3833.9,10.65816422]
[1641211920272,10.0,3834.0,3833.9,8.47782903]
[1641211921300,10.0,3834.0,3833.9,10.64719116]
[1641211921503,10.0,3834.0,3833.9,8.47782903]
[1641211921705,10.0,3834.0,3833.9,10.64558161]
[1641211921906,10.0,3834.0,3833.9,8.47782903]
[1641211922707,10.0,3834.0,3833.9,10.64913095]
[1641211922906,10.0,3834.0,3833.9,8.47782903]
[1641211923116,0.65216,3834.4,3834.0,0.78868931]
[1641211923312,2.6085312,3835.4,3834.1,7.72584638]
[1641211923313,1.0182687,3835.4,3834.1,7.72584638]
[1641211923513,0.5944875,3835.7,3835.3,0.0121938]
[1641211923712,1.0,3836.6,3835.6,2.52179301]
[1641211923915,4.44226893,3836.7,3835.7,0.381]
[1641211924162,4.44226893,3836.7,3835.8,2.50954638]
[1641211924362,0.01534744,3836.6,3835.9,6.2466716]
[1641211924564,0.01534744,3836.6,3836.0,3.16132638]
[1641211924766,4.44226893,3836.7,3836.0,3.16132638]
[1641211924767,0.01477901,3836.5,3836.1,5.5946]
[1641211925168,0.01421059,3836.4,3836.1,5.2136]
[1641211925364,0.01421059,3836.4,3836.1,5.5136]
[1641211925566,0.59389569,3837.1,3836.2,10.95954638]
[1641211925567,0.01364217,3836.3,3836.2,10.95954638]
[1641211925766,0.01364217,3836.3,3836.2,8.93984638]
[1641211925970,0.01364217,3836.3,3836.2,7.4303]
[1641211926770,6.22364217,3836.3,3836.2,6.8978]
[1641211926971,6.22364217,3836.3,3836.2,9.85902903]
[1641211927373,0.01364217,3836.3,3836.2,9.85902903]
[1641211927571,0.05665149,3837.3,3836.3,0.3]
[1641211927773,0.05665149,3837.3,3836.3,0.681]
[1641211928015,0.00511581,3837.2,3836.3,0.381]
[1641211928213,0.00511581,3837.2,3836.3,3.89054638]
[1641211928414,0.00454739,3837.1,3836.5,0.65169]
[1641211928616,0.00454739,3837.1,3836.6,1.6840849]
[1641211928810,0.00397896,3837.0,3836.7,5.2128]
[1641211929010,0.00397896,3837.0,3836.8,0.381]
[1641211929212,0.00341054,3836.9,3836.8,1.381]
[1641211929413,0.00341054,3836.9,3836.8,5.19365668]
[1641211929414,1.054e-05,3836.9,3836.8,5.19365668]
[1641211929612,0.00341054,3836.9,3836.8,6.8967103]
[1641211929813,6.21341054,3836.9,3836.8,9.4967103]
[1641211930019,6.21341054,3836.9,3836.8,10.4967103]
[1641211930213,0.00341054,3836.9,3836.8,10.4967103]
[1641211930417,1.054e-05,3836.9,3836.8,10.4967103]
[1641211930615,1.054e-05,3836.9,3836.8,10.50066818]
[1641211930817,1.054e-05,3836.9,3836.8,12.46189721]
[1641211931115,1.054e-05,3836.9,3836.8,11.15878691]
[1641211932167,1.054e-05,3836.9,3836.8,12.15878691]
[1641211932368,1.054e-05,3836.9,3836.8,13.46194691]
[1641211933768,1.054e-05,3836.9,3836.8,11.15878691]
[1641211934171,0.00445556,3836.9,3836.8,11.15878691]
[1641211936420,0.00445556,3836.9,3836.8,12.15878691]
[1641211936821,0.00445556,3836.9,3836.8,11.15878691]
[1641211941154,0.00445556,3836.9,3836.8,11.81037691]
[1641211942459,0.00445556,3836.9,3836.8,11.15878691]
[1641211942657,1.32388302,3837.7,3837.0,0.6515961]
[1641211942918,1.62388302,3837.7,3837.1,0.3]
[1641211943124,1.62388302,3837.7,3837.1,0.30226315]
[1641211943418,1.62388302,3837.7,3836.8,11.02552376]
[1641211943621,0.00227369,3837.6,3836.8,11.02552376]
[1641211943820,0.00227369,3837.6,3836.9,0.00170527]
[1641211944019,1.32388302,3837.7,3837.2,2.96122903]
[1641211944020,0.00170527,3837.5,3837.2,2.96122903]
[1641211944419,0.00113685,3837.4,3837.2,2.96122903]
[1641211944829,0.00227369,3837.6,3837.1,2.96122903]
[1641211945226,0.00170527,3837.5,3837.1,2.96122903]
[1641211945632,0.00113685,3837.4,3837.1,2.96122903]
[1641211945927,2.40181944,3837.6,3837.1,2.96122903]
[1641211945928,0.01274125,3837.5,3837.1,2.96122903]
[1641211946126,0.01274125,3837.5,3837.0,2.96122903]
[1641211946325,0.00113685,3837.4,3837.0,6.50446266]
[1641211946527,0.65296685,3837.4,3837.0,6.50446266]
[1641211946769,0.65290685,3837.4,3837.0,6.50446266]
[1641211946969,0.65290685,3837.4,3837.2,1.31933116]
[1641211947168,2.41912734,3837.3,3837.2,1.31933116]
[1641211947368,0.95290685,3837.4,3837.2,1.31933116]
[1641211947570,0.00113685,3837.4,3837.2,1.31933116]
[1641211948471,0.00113685,3837.4,3837.0,2.96122903]
[1641211949468,0.00113685,3837.4,3837.3,2.96122903]
[1641211950070,0.00113685,3837.4,3837.0,2.96122903]
[1641211952721,0.00113685,3837.4,3837.0,3.26122903]
[1641211953921,0.00113685,3837.4,3837.0,2.96122903]
[1641211958107,0.65288685,3837.4,3837.0,2.96122903]
[1641211958308,0.381,3837.3,3837.0,2.96122903]
[1641211958912,0.65181,3837.2,3837.0,2.96122903]
[1641211959113,8.831,3837.1,3837.0,2.96122903]
[1641211959516,1.681,3837.1,3837.0,2.96236588]
[1641211959915,1.30470685,3837.4,3837.0,2.96236588]
[1641211960117,0.65288685,3837.4,3837.0,2.96236588]
[1641211961121,0.65288685,3837.4,3837.1,2.96122903]
[1641211963379,0.00113685,3837.4,3837.1,2.96122903]
[1641211963574,0.00113685,3837.4,3837.1,3.61282373]
[1641211964178,0.00113685,3837.4,3837.2,0.3]
[1641211964375,0.00113685,3837.4,3837.2,4.26122903]
[1641211965407,0.00113685,3837.4,3837.3,2.96122903]
[1641211967113,0.00113685,3837.4,3837.3,4.26426503]
[1641211968315,0.00113685,3837.4,3837.3,6.01452198]
[1641211969564,0.00113685,3837.4,3837.3,4.26426503]